fUSD/lending_fUSD_20250724
["ID","MTS","AMOUNT","RATE_DAILY","PERIOD"]
[374608137,1753373444217,-1600.0,0.000351,12]
[374608138,1753373444226,-459.4,0.0003559,2]
[374608139,1753373444305,-357.41,0.00034877,2]
[374608140,1753373444316,-7241.28504584,0.0003559,2]
[374608141,1753373444326,-783.4026,0.0003559,2]
[374608142,1753373444336,-2625.92,0.0003559,2]
[374608143,1753373444345,-1192.01764616,0.00035593,2]
[374608144,1753373444357,-154.41158681,0.00035595,2]
[374608145,1753373444367,-185.60737095,0.000356,2]
[374608146,1753373444379,-150.0,0.00035601,2]
[374608147,1753373444390,-150.0,0.00035603,2]
[374608148,1753373444400,-154.41158681,0.00035603,2]
[374608149,1753373444410,-150.0,0.00035604,2]
[374608150,1753373444420,-1192.01764616,0.00035606,2]
[374608151,1753373444429,-150.0,0.00035606,2]
[374608152,1753373444439,-150.0,0.00035608,2]
[374608153,1753373444449,-150.0,0.00035609,2]
[374608154,1753373444460,-150.0,0.0003561,2]
[374608155,1753373444469,-150.0,0.00035611,2]
[374608156,1753373444479,-154.41158681,0.00035612,2]
[374608157,1753373444490,-500.0,0.00035615,120]
[374608158,1753373444500,-460.0,0.00035615,120]
[374608159,1753373444510,-500.0,0.00035616,20]
[374608160,1753373444520,-301.46423935,0.00035616,20]
[374608161,1753373444530,-150.0,0.00035616,2]
[374608162,1753373444540,-150.0,0.00035617,2]
[374608163,1753373444550,-200.0,0.00035617,2]
[374608164,1753373444560,-150.0,0.00035617,2]
[374608165,1753373444569,-200.0,0.00035617,2]
[374608166,1753373444579,-150.0,0.00035617,2]
[374608168,1753373444589,-150.0,0.00035617,2]
[374608169,1753373444599,-1192.01764616,0.00035618,2]
[374608170,1753373444609,-154.41158681,0.0003562,2]
[374608171,1753373444619,-150.0,0.00035626,2]
[374608172,1753373444629,-150.0,0.00035627,2]
[374608173,1753373444641,-154.41158681,0.00035628,2]
[374608174,1753373444651,-150.0,0.0003563,2]
[374608175,1753373444660,-1192.01764616,0.00035631,2]
[374608176,1753373444670,-1000.0,0.00035635,7]
[374608177,1753373444680,-154.41158681,0.00035637,2]
[374608178,1753373444689,-1192.01764616,0.00035644,2]
[374608179,1753373444699,-154.41158681,0.00035645,2]
[374608180,1753373444709,-1115.87,0.0003565,35]
[374608181,1753373444720,-150.0,0.0003565,2]
[374608182,1753373444730,-154.41158681,0.00035653,2]
[374608183,1753373444740,-1192.01764616,0.00035657,2]
[374608184,1753373444751,-150.03,0.0003566,2]
[374608185,1753373444761,-164.0,0.0003566,2]
[374608186,1753373444770,-164.0,0.0003566,2]
[374608187,1753373444780,-150.0,0.0003566,2]
[374608188,1753373444789,-164.0,0.0003566,2]
[374608189,1753373444799,-154.41158681,0.00035662,2]
[374608190,1753373444808,-1081.86541949,0.00035669,30]
[374608191,1753373444818,-1081.86541949,0.00035669,30]
[374608192,1753373444827,-161.38,0.00035669,2]
[374608193,1753373444838,-178.45,0.00035669,2]
[374608194,1753373444848,-1192.01764616,0.00035669,2]
[374608195,1753373444857,-19928.92249896,0.0003567,3]
[374608196,1753373444954,-157742.31427904,0.0003567,3]
[374608197,1753373444964,-233.0,0.0003567,120]
[374608198,1753373444974,-23689.498237,0.0003567,3]
[374608199,1753373444984,-89887.82736979,0.0003567,3]
[374608201,1753373446413,-1568.41210099,0.000352,12]
[374608202,1753373446426,-631.58789901,0.000352,12]
[374608203,1753373446436,-367.67850102,0.000353,12]
[374608204,1753373446447,-2332.32149898,0.000353,12]
[374608205,1753373446457,-400.0,0.00035669,2]
[374608206,1753373446467,-400.0,0.00035669,2]
[374608207,1753373446477,-400.0,0.00035669,2]
[374608208,1753373446487,-400.0,0.00035669,2]
[374608209,1753373446497,-400.0,0.00035669,2]
[374608210,1753373446507,-400.0,0.00035669,2]
[374608211,1753373446517,-400.0,0.00035669,2]
[374608212,1753373446528,-400.0,0.00035669,2]
[374608213,1753373446539,-294.40296949,0.00035669,2]
[374608214,1753373446548,-154.41158681,0.0003567,2]
[374608215,1753373446559,-28559.66381521,0.0003567,3]
[374608216,1753373446568,-150.0,0.00035672,2]
[374608217,1753373446579,-501.71157845,0.00035673,5]
[374608218,1753373446588,-292.96037145,0.00035673,5]
[374608219,1753373446598,-360.95345889,0.00035673,5]
[374608220,1753373446608,-269.45436707,0.00035673,2]
[374608221,1753373446619,-150.0,0.00035674,2]
[374608222,1753373446629,-150.0,0.00035675,2]
[374608223,1753373446639,-150.0,0.00035677,2]
[374608224,1753373446655,-23689.498237,0.00035679,3]
[374608225,1753373446665,-480.0,0.00035679,120]
[374608226,1753373446675,-500.0,0.00035679,120]
[374608227,1753373446685,-500.0,0.00035679,120]
[374608228,1753373446694,-1000.0,0.00035679,2]
[374608229,1753373446704,-11844.7491185,0.00035679,3]
[374608230,1753373446714,-166.13,0.0003568,120]
[374608231,1753373446724,-233.0,0.0003568,120]
[374608232,1753373446734,-312.81479896,0.0003568,2]
[374608233,1753373446743,-1192.01764616,0.00035682,2]
[374608234,1753373446754,-151.0,0.00035687,2]
[374608235,1753373446763,-151.0,0.00035687,2]
[374608236,1753373446773,-7000.0,0.00035687,2]
[374608237,1753373446783,-480.0,0.00035688,120]
[374608238,1753373446793,-500.0,0.00035689,120]
[374608239,1753373446803,-500.0,0.00035689,30]
[374608240,1753373446814,-400.0,0.00035689,2]
[374608241,1753373446825,-400.0,0.00035689,2]
[374608242,1753373446835,-480.0,0.00035689,120]
[374608243,1753373446848,-500.0,0.00035689,120]
[374608244,1753373446858,-500.0,0.00035689,120]
[374608245,1753373446868,-500.0,0.00035689,120]
[374608246,1753373446878,-500.0,0.00035689,120]
[374608247,1753373446887,-500.0,0.00035689,120]
[374608248,1753373446903,-503.49249352,0.00035689,2]
[374608249,1753373446913,-153.88153558,0.00035689,3]
[374608250,1753373446923,-1396.48990298,0.00035689,3]
[374608251,1753373446932,-152.47122976,0.00035689,3]
[374608252,1753373446942,-9216.856,0.00035689,3]
[374608253,1753373446952,-9557.879672,0.00035689,3]
[374608254,1753373446961,-2307.40779559,0.00035689,3]
[374608255,1753373446971,-500.0,0.00035689,3]
[374608256,1753373446980,-500.0,0.00035689,3]
[374608257,1753373446990,-312.69802449,0.00035689,3]
[374608258,1753373446999,-500.0,0.00035689,3]
[374608259,1753373447009,-500.0,0.00035689,3]
[374608260,1753373447019,-500.0,0.00035689,3]
[374608261,1753373447029,-500.0,0.00035689,3]
[374608262,1753373447039,-500.0,0.00035689,3]
[374608263,1753373447049,-231.28369723,0.00035689,3]
[374608264,1753373447058,-500.0,0.00035689,3]
[374608265,1753373447068,-239.84119403,0.00035689,3]
[374608266,1753373447078,-248.71531821,0.00035689,3]
[374608267,1753373447087,-500.0,0.00035689,2]
[374608268,1753373447097,-500.0,0.00035689,2]
[374608269,1753373447107,-257.91778498,0.00035689,3]
[374608270,1753373447117,-500.0,0.00035689,2]
[374608271,1753373447127,-500.0,0.00035689,3]
[374608272,1753373447137,-500.0,0.00035689,2]
[374608273,1753373447155,-500.0,0.00035689,2]
[374608274,1753373447165,-267.46074303,0.00035689,3]
[374608275,1753373447175,-500.0,0.00035689,3]
[374608276,1753373447184,-277.35679052,0.00035689,3]
[374608277,1753373447194,-500.0,0.00035689,3]
[374608278,1753373447204,-287.61899177,0.00035689,3]
[374608279,1753373447214,-500.0,0.00035689,3]
[374608280,1753373447224,-298.26089446,0.00035689,3]
[374608281,1753373447234,-500.0,0.00035689,3]
[374608282,1753373447243,-309.29654756,0.00035689,3]
[374608283,1753373447253,-500.0,0.00035689,3]
[374608284,1753373447263,-320.74051982,0.00035689,3]
[374608285,1753373447273,-500.0,0.00035689,3]
[374608286,1753373447283,-332.60791905,0.00035689,3]
[374608287,1753373447293,-500.0,0.00035689,3]
[374608288,1753373447303,-344.91441206,0.00035689,3]
[374608289,1753373447313,-191.3798469,0.00035689,3]
[374608290,1753373447327,-357.6762453,0.00035689,3]
[374608291,1753373447338,-370.91026638,0.00035689,3]
[374608292,1753373447348,-384.63394623,0.00035689,3]
[374608293,1753373447358,-398.86540225,0.00035689,3]
[374608294,1753373447369,-403.88,0.00035689,120]
[374608295,1753373447379,-3195.11,0.00035689,120]
[374608296,1753373447388,-480.0,0.00035689,120]
[374608297,1753373447404,-515143.9083665,0.00035689,17]
[374608298,1753373447414,-33757.11147647,0.00035689,61]
[374608299,1753373447424,-959.54986701,0.0003569,2]
[374608300,1753373447434,-261.53924312,0.0003569,2]
[374608301,1753373447444,-250000.0,0.0003569,30]
[374608302,1753373447454,-470.0,0.0003569,3]
[374608303,1753373447463,-400.0,0.0003569,3]
[374608304,1753373447473,-233.0,0.0003569,120]
[374608305,1753373447483,-500.0,0.0003569,120]
[374608306,1753373447493,-500.0,0.0003569,120]
[374608307,1753373447503,-500.0,0.0003569,120]
[374608308,1753373447513,-500.0,0.0003569,120]
[374608309,1753373447522,-151.0,0.0003569,7]
[374608310,1753373447533,-151.0,0.0003569,7]
[374608311,1753373447543,-806.72925,0.0003569,120]
[374608312,1753373447553,-185.60737095,0.00035692,2]
[374608313,1753373447563,-150.0,0.00035693,2]
[374608314,1753373447573,-1192.01764616,0.00035695,2]
[374608315,1753373447583,-427.820229,0.00035695,2]
[374608316,1753373447593,-150.0,0.00035695,2]
[374608317,1753373447603,-1208.74,0.00035699,120]
[374608318,1753373447612,-1208.74,0.00035699,120]
[374608319,1753373447622,-1208.74,0.00035699,120]
[374608320,1753373447632,-1208.74,0.00035699,120]
[374608321,1753373447645,-1208.74,0.00035699,120]
[374608322,1753373447655,-1208.74,0.00035699,120]
[374608323,1753373447664,-1208.74,0.00035699,120]
[374608324,1753373447674,-1208.74,0.00035699,120]
[374608325,1753373447683,-1208.74,0.00035699,120]
[374608326,1753373447694,-1208.74,0.00035699,120]
[374608327,1753373447704,-1208.74,0.00035699,120]
[374608328,1753373447716,-1208.74,0.00035699,120]
[374608329,1753373447726,-1208.74,0.00035699,120]
[374608330,1753373447737,-1208.74,0.00035699,120]
[374608331,1753373447746,-1208.74,0.00035699,120]
[374608332,1753373447756,-1208.74,0.00035699,120]
[374608333,1753373447766,-1208.74,0.00035699,120]
[374608334,1753373447775,-1208.74,0.00035699,120]
[374608335,1753373447785,-1208.74,0.00035699,120]
[374608336,1753373447795,-1208.74,0.00035699,120]
[374608337,1753373447805,-1208.74,0.00035699,120]
[374608338,1753373447814,-1208.74,0.00035699,120]
[374608339,1753373447824,-1208.74,0.00035699,120]
[374608340,1753373447834,-1208.85,0.00035699,120]
[374608341,1753373447843,-1208.74,0.00035699,120]
[374608342,1753373447853,-1208.74,0.00035699,120]
[374608343,1753373447863,-1208.74,0.00035699,120]
[374608344,1753373447872,-1208.74,0.00035699,120]
[374608345,1753373447882,-1208.74,0.00035699,120]
[374608346,1753373447893,-1208.74,0.00035699,120]
[374608347,1753373447903,-1208.74,0.00035699,120]
[374608348,1753373447914,-1208.85,0.00035699,120]
[374608349,1753373447923,-500.0,0.00035699,120]
[374608350,1753373447932,-500.0,0.00035699,120]
[374608351,1753373447942,-500.0,0.00035699,120]
[374608352,1753373447951,-500.0,0.00035699,120]
[374608353,1753373447962,-300.0,0.00035699,2]
[374608354,1753373447971,-420893.1177276,0.000357,2]
[374608355,1753373447984,-1955.4,0.000357,2]
[374608356,1753373447997,-2270.29500683,0.000357,2]
[374608357,1753373448337,-4092.91398998,0.000357,2]
[374608594,1753373574568,152.0,0.00025,120]
[374608595,1753373574601,152.0,0.000264,120]
[374608723,1753374047229,152.29,0.00013699,2]
[374608797,1753374451293,14197.82999886,0.0002,2]
[374608799,1753374468776,3000.0,0.00027397,120]
[374608805,1753374480351,5000.0,0.00027397,120]
[374608809,1753374490060,5000.0,0.00027397,120]
[374608814,1753374499111,5000.0,0.00027397,120]
[374608818,1753374514870,3000.0,0.00027397,120]
[374608824,1753374528125,2408.16,0.00027397,120]
[374608839,1753374632859,-150.0,0.00022,2]
[374608841,1753374632873,-181.828,0.000225,3]
[374608845,1753374632885,-1101.18157656,0.000225,3]
[374608846,1753374632897,-1325.54928151,0.000225,3]
[374608847,1753374632913,-10.37328957,0.000225,3]
[374608848,1753374632923,-235.59666843,0.00022947,2]
[374608849,1753374632934,-300.77,0.00023047,2]
[374608850,1753374632944,-303.1,0.00023047,2]
[374608851,1753374632953,-302.84,0.00023047,2]
[374608852,1753374632963,-150.0,0.0002318,2]
[374608853,1753374632973,-1200.0,0.00023999,2]
[374608854,1753374632983,-7.78938938,0.00024,5]
[374608855,1753374632996,-4992.21798472,0.00024,5]
[374608856,1753374633008,-157.34194495,0.00024,2]
[374608857,1753374633023,-250.0,0.000242,2]
[374608858,1753374633042,-150.0,0.0002437,2]
[374608859,1753374633052,-202.20585333,0.000249,12]
[374608860,1753374633063,-161.0,0.00025,7]
[374608861,1753374633072,-235.59666843,0.00025363,2]
[374608862,1753374633082,-202.20585329,0.0002545,13]
[374608863,1753374633092,-220.0,0.0002555,2]
[374608864,1753374633102,-161.0,0.0002589,7]
[374608865,1753374633112,-202.20585329,0.00026,14]
[374608866,1753374633123,-1200.0,0.00026145,2]
[374608867,1753374633134,-152.7,0.0002654,2]
[374608868,1753374633148,-202.20585329,0.0002655,15]
[374608869,1753374633169,-235.33,0.000267,2]
[374608870,1753374633179,-237.25003985,0.00026877,4]
[374608871,1753374633188,-150.0,0.00026877,4]
[374608872,1753374633199,-600.85066512,0.00026949,2]
[374608873,1753374633208,-8151.49776153,0.00027,7]
[374608874,1753374633219,-518.14,0.000271,2]
[374608875,1753374633229,-202.20585329,0.000271,16]
[374608876,1753374633239,-163.0,0.00027185,7]
[374608877,1753374633251,-150.0,0.000272,2]
[374608878,1753374633260,-437.39,0.00027229,2]
[374608879,1753374633270,-164.09,0.00027294,2]
[374608880,1753374633280,-816.58,0.0002738,2]
[374608881,1753374633291,-942.63,0.00027451,30]
[374608882,1753374633301,-250.0,0.00027598,2]
[374608883,1753374633310,-387.37,0.00027642,2]
[374608884,1753374633320,-202.20585329,0.0002765,17]
[374608885,1753374633330,-184.13,0.00027696,2]
[374608886,1753374633340,-444.86,0.00027738,2]
[374608887,1753374633349,-180.0,0.00027738,7]
[374608888,1753374633359,-1000.0,0.00027738,2]
[374608889,1753374633372,-235.59666843,0.00027778,2]
[374608890,1753374633383,-152.0,0.000278,120]
[374608891,1753374633393,-19366.58,0.00027822,2]
[374608892,1753374633403,-151.0,0.00027836,2]
[374608893,1753374633413,-321.82,0.0002785,3]
[374608894,1753374633423,-12454.58,0.0002785,2]
[374608895,1753374633433,-207.7,0.00027878,2]
[374608896,1753374633444,-4390.15426812,0.00028,60]
[374608897,1753374633454,-202.20585329,0.000282,18]
[374608898,1753374633465,-152.71,0.00028342,2]
[374608899,1753374633475,-152.71,0.00028389,2]
[374608900,1753374633485,-152.71,0.00028437,2]
[374608901,1753374633495,-152.71,0.00028484,2]
[374608902,1753374633509,-5000.0,0.00028484,2]
[374608903,1753374633523,-152.71,0.00028531,2]
[374608904,1753374633532,-152.71,0.00028578,2]
[374608905,1753374633542,-152.71,0.00028626,2]
[374608906,1753374633551,-151.0,0.00028667,2]
[374608907,1753374633561,-202.20585329,0.0002875,19]
[374608908,1753374633571,-200.0,0.00028784,2]
[374608909,1753374633581,-282.05,0.00029054,2]
[374608910,1753374633590,-152.7,0.00029194,2]
[374608911,1753374633600,-152.0,0.000293,120]
[374608912,1753374633610,-202.20585329,0.000293,20]
[374608913,1753374633623,-477.18900901,0.00029312,2]
[374608914,1753374633634,-211.01152796,0.00029314,2]
[374608915,1753374633644,-160.0,0.00029314,2]
[374608916,1753374633656,-174.919,0.00029368,22]
[374608917,1753374633667,-1441.864,0.00029368,22]
[374608918,1753374633678,-151.0,0.00029498,2]
[374608919,1753374633689,-3315.9,0.0002958,2]
[374608920,1753374633701,-1280.60822221,0.00029759,2]
[374608921,1753374633711,-567.13526043,0.00029759,20]
[374608922,1753374633721,-501.51600221,0.0002976,2]
[374608923,1753374633733,-155.89272661,0.00029763,2]
[374608924,1753374633743,-372.42108977,0.0002977,2]
[374608925,1753374633753,-194.98069152,0.00029773,15]
[374608926,1753374633763,-372.42108975,0.00029775,2]
[374608927,1753374633774,-487.50842604,0.00029779,2]
[374608928,1753374633784,-372.42108975,0.00029779,2]
[374608929,1753374633795,-1232.23088765,0.0002978,2]
[374608930,1753374633805,-371.0,0.0002985,120]
[374608931,1753374633815,-371.0,0.0002985,120]
[374608932,1753374633825,-202.20585329,0.0002985,21]
[374608933,1753374633834,-271.5,0.0002985,2]
[374608934,1753374633844,-491.77116022,0.00029859,2]
[374608935,1753374633854,-474.80780679,0.00029859,2]
[374608936,1753374633866,-500.0,0.00029859,2]
[374608937,1753374633876,-500.0,0.00029859,2]
[374608938,1753374633886,-1163.12611225,0.00029859,2]
[374608939,1753374633896,-500.0,0.00029859,2]
[374608940,1753374633906,-306.96733569,0.00029859,2]
[374608941,1753374633916,-444.63046983,0.00029859,2]
[374608942,1753374633926,-500.0,0.00029859,2]
[374608943,1753374633937,-500.0,0.00029859,2]
[374608944,1753374633947,-1163.12611225,0.00029859,2]
[374608945,1753374633958,-500.0,0.00029859,2]
[374608946,1753374633968,-500.0,0.00029859,2]
[374608948,1753374634473,-441.53981276,0.00029859,2]
[374608949,1753374634483,-597.27041691,0.00029859,2]
[374608950,1753374634493,-1163.12611225,0.00029859,2]
[374608951,1753374634502,-500.0,0.00029859,2]
[374608952,1753374634512,-500.0,0.00029859,2]
[374608953,1753374634522,-500.0,0.00029859,2]
[374608954,1753374634531,-500.0,0.00029859,2]
[374608955,1753374634540,-1163.12611225,0.00029859,2]
[374608956,1753374634552,-500.0,0.00029859,2]
[374608957,1753374634561,-500.0,0.00029859,2]
[374608958,1753374634571,-1163.12611225,0.00029859,2]
[374608959,1753374634580,-475.51660876,0.00029859,2]
[374608960,1753374634590,-500.0,0.00029859,2]
[374608961,1753374634600,-500.0,0.00029859,2]
[374608962,1753374634609,-1163.12611225,0.00029859,2]
[374608963,1753374634619,-500.0,0.00029859,2]
[374608964,1753374634629,-500.0,0.00029859,2]
[374608965,1753374634639,-1163.12611225,0.00029859,2]
[374608966,1753374634650,-500.0,0.00029859,2]
[374608967,1753374634663,-1163.12611225,0.00029859,2]
[374608968,1753374634673,-500.0,0.00029859,2]
[374608969,1753374634682,-500.0,0.00029859,2]
[374608970,1753374634692,-500.0,0.00029859,2]
[374608971,1753374634703,-1163.12611225,0.00029859,2]
[374608972,1753374634713,-178.50933178,0.00029859,2]
[374608973,1753374634722,-500.0,0.00029859,2]
[374608974,1753374634733,-1163.12611225,0.00029859,2]
[374608975,1753374634742,-1163.12611225,0.00029859,2]
[374608976,1753374634752,-500.0,0.00029859,2]
[374608977,1753374634762,-1163.12611225,0.00029859,2]
[374608978,1753374634772,-500.0,0.00029859,2]
[374608979,1753374634782,-1163.12611225,0.00029859,2]
[374608980,1753374634792,-1163.12611225,0.00029859,2]
[374608981,1753374634802,-500.0,0.00029859,2]
[374608982,1753374634812,-1163.12611225,0.00029859,2]
[374608983,1753374634823,-500.0,0.00029859,2]
[374608984,1753374634833,-1163.12611225,0.00029859,2]
[374608985,1753374634843,-500.0,0.00029859,2]
[374608986,1753374634853,-1163.12611225,0.00029859,2]
[374608987,1753374634863,-500.0,0.00029859,2]
[374608988,1753374634874,-1163.12611225,0.00029859,2]
[374608989,1753374634884,-1163.12611225,0.00029859,2]
[374608990,1753374634894,-244.27346871,0.00029859,2]
[374608991,1753374634904,-1163.12611225,0.00029859,2]
[374608992,1753374634914,-500.0,0.00029859,2]
[374608993,1753374634924,-1163.12611225,0.00029859,2]
[374608994,1753374634934,-1163.12611225,0.00029859,2]
[374608995,1753374634944,-1163.12611225,0.00029859,2]
[374608996,1753374634954,-1163.12611225,0.00029859,2]
[374608997,1753374634964,-1163.12611225,0.00029859,2]
[374608998,1753374634973,-1163.12611225,0.00029859,2]
[374608999,1753374634983,-1163.12611225,0.00029859,2]
[374609000,1753374634993,-1163.12611225,0.00029859,2]
[374609001,1753374635003,-1163.12611225,0.00029859,2]
[374609002,1753374635012,-1163.12611225,0.00029859,2]
[374609003,1753374635022,-1163.12611225,0.00029859,2]
[374609004,1753374635032,-1163.12611225,0.00029859,2]
[374609005,1753374635042,-1163.12611225,0.00029859,2]
[374609006,1753374635052,-1163.12611225,0.00029859,2]
[374609007,1753374635062,-1163.12611225,0.00029859,2]
[374609008,1753374635071,-1163.12611225,0.00029859,2]
[374609009,1753374635081,-1163.12611225,0.00029859,2]
[374609010,1753374635091,-1163.12611225,0.00029859,2]
[374609011,1753374635101,-1163.12611225,0.00029859,2]
[374609012,1753374635111,-1163.12611225,0.00029859,2]
[374609013,1753374635122,-1163.12611225,0.00029859,2]
[374609014,1753374635131,-1163.12611225,0.00029859,2]
[374609015,1753374635142,-1163.12611225,0.00029859,2]
[374609016,1753374635152,-1163.12611225,0.00029859,2]
[374609017,1753374635162,-1163.12611225,0.00029859,2]
[374609018,1753374635172,-1163.12611225,0.00029859,2]
[374609019,1753374635182,-1163.12611225,0.00029859,2]
[374609020,1753374635193,-1163.12611225,0.00029859,2]
[374609021,1753374635203,-1163.12611225,0.00029859,2]
[374609022,1753374635213,-1163.12611225,0.00029859,2]
[374609023,1753374635222,-1163.12611225,0.00029859,2]
[374609024,1753374635233,-1163.12611225,0.00029859,2]
[374609025,1753374635243,-1163.12611225,0.00029859,2]
[374609026,1753374635253,-1163.12611225,0.00029859,2]
[374609027,1753374635263,-1163.12611225,0.00029859,2]
[374609028,1753374635273,-1163.12611225,0.00029859,2]
[374609029,1753374635284,-297.61214797,0.00029859,2]
[374609030,1753374635295,-1241.67554741,0.00029859,2]
[374609031,1753374635305,-1241.67554741,0.00029859,2]
[374609032,1753374635316,-1241.67554741,0.00029859,2]
[374609033,1753374635326,-1241.67554741,0.00029859,2]
[374609034,1753374635335,-1241.67554741,0.00029859,2]
[374609035,1753374635345,-1241.67554741,0.00029859,2]
[374609036,1753374635355,-1241.67554741,0.00029859,2]
[374609037,1753374635365,-1241.67554741,0.00029859,2]
[374609038,1753374635376,-1241.67554741,0.00029859,2]
[374609039,1753374635385,-1241.67554741,0.00029859,2]
[374609040,1753374635395,-1241.67554741,0.00029859,2]
[374609041,1753374635407,-1241.67554741,0.00029859,2]
[374609042,1753374635417,-1241.67554741,0.00029859,2]
[374609043,1753374635426,-1241.67554741,0.00029859,2]
[374609044,1753374635435,-1241.67554741,0.00029859,2]
[374609045,1753374635445,-1241.67554741,0.00029859,2]
[374609046,1753374635455,-1241.67554741,0.00029859,2]
[374609047,1753374635465,-1241.67554741,0.00029859,2]
[374609048,1753374635474,-1241.67554741,0.00029859,2]
[374609049,1753374635484,-1241.67554741,0.00029859,2]
[374609050,1753374635494,-1241.67554741,0.00029859,2]
[374609051,1753374635504,-1241.67554741,0.00029859,2]
[374609052,1753374635513,-1241.67554741,0.00029859,2]
[374609053,1753374635523,-1241.67554741,0.00029859,2]
[374609054,1753374635532,-1241.67554741,0.00029859,2]
[374609055,1753374635542,-1241.67554741,0.00029859,2]
[374609056,1753374635552,-1241.67554741,0.00029859,2]
[374609057,1753374635561,-1241.67554741,0.00029859,2]
[374609058,1753374635571,-1241.67554741,0.00029859,2]
[374609059,1753374635581,-1241.67554737,0.00029859,2]
[374609060,1753374635590,-1241.67554737,0.00029859,2]
[374609061,1753374635599,-1241.67554737,0.00029859,2]
[374609062,1753374635609,-440.06620125,0.0002986,3]
[374609063,1753374635620,-19633.2512196,0.0002986,3]
[374609064,1753374635630,-271.5,0.0002986,2]
[374609065,1753374635640,-371.0,0.0002986,120]
[374609066,1753374635649,-371.0,0.0002986,120]
[374609067,1753374635663,-110596.215521,0.0002986,3]
[374609068,1753374635672,-206.58693301,0.00029863,7]
[374609069,1753374635682,-9816.62560978,0.00029868,3]
[374609070,1753374635692,-490.63878566,0.00029869,2]
[374609071,1753374635703,-500.0,0.00029869,2]
[374609072,1753374635712,-500.0,0.00029869,2]
[374609073,1753374635722,-500.0,0.00029869,2]
[374609074,1753374635732,-500.0,0.00029869,2]
[374609075,1753374635742,-500.0,0.00029869,2]
[374609076,1753374635751,-556.09166556,0.00029869,2]
[374609077,1753374635761,-365.46035839,0.00029869,2]
[374609078,1753374635770,-154.83,0.00029869,2]
[374609079,1753374635780,-154.83,0.00029869,2]
[374609080,1753374635789,-154.83,0.00029869,2]
[374609081,1753374635799,-154.83,0.00029869,2]
[374609082,1753374635810,-284682.142684,0.00029869,3]
[374609083,1753374635820,-301580.03843702,0.0002987,3]
[374609084,1753374635835,-743.09610305,0.0002987,3]
[374609085,1753374635847,-507.36,0.0002987,3]
[374609086,1753374635859,-1398.61129935,0.0002987,3]
[374609087,1753374635872,-272.75000385,0.0002987,3]
[374609088,1753374635883,-4044.05812756,0.0002987,3]
[374609089,1753374635896,-4810.03000517,0.0002987,3]
[374609090,1753374635906,-371.0,0.0002987,120]
[374609091,1753374635916,-371.0,0.0002987,120]
[374609092,1753374635927,-365.46035839,0.0002987,2]
[374609093,1753374635937,-154.83,0.0002987,2]
[374609094,1753374635947,-154.83,0.0002987,2]
[374609095,1753374635957,-154.83,0.0002987,2]
[374609096,1753374635967,-500.0,0.00029873,5]
[374609097,1753374635976,-159.13754522,0.00029873,5]
[374609098,1753374635986,-500.0,0.00029873,5]
[374609099,1753374635996,-500.0,0.00029873,2]
[374609100,1753374636010,-2439.46213972,0.00029878,2]
[374609101,1753374636034,-622.51786028,0.00029878,2]
[374609102,1753374636044,-10198.97013068,0.00029879,2]
[374609103,1753374636057,-56562.22852771,0.00029879,2]
[374609104,1753374636069,-1049.55250262,0.00029879,2]
[374609105,1753374636081,-310.07538915,0.00029879,2]
[374609106,1753374636093,-1090.00276085,0.00029879,2]
[374609107,1753374636104,-11682.078,0.00029879,2]
[374609108,1753374636117,-701.54613553,0.00029879,2]
[374609109,1753374636128,-455.8107763,0.00029879,2]
[374609110,1753374636141,-16191.09,0.00029879,2]
[374609111,1753374636152,-23502.66035709,0.00029879,2]
[374609113,1753374638297,-917.082,0.00029879,2]
[374609114,1753374638309,-2311.16,0.00029879,2]
[374609115,1753374638322,-3036.07357199,0.00029879,2]